fUSD/lending_fUSD_20240609
["ID","MTS","AMOUNT","RATE_DAILY","PERIOD"]
[328860038,1717895439906,-154.25401199,0.00028132,2]
[328860039,1717895439916,-118.68685772,0.00028196,2]
[328860040,1717895439929,-330.2694009,0.00028196,2]
[328860041,1717895439942,-1083.67094978,0.00028196,2]
[328860042,1717895440994,-953.5375916,0.00028196,2]
[328860043,1717895441005,-154.5961993,0.00028197,2]
[328860044,1717895441016,-155.27136512,0.00028218,2]
[328860045,1717895441027,-152.86879678,0.00028239,2]
[328860046,1717895441037,-1280.4854,0.00028256,2]
[328860047,1717895441048,-153.33863863,0.00028271,2]
[328860048,1717895441058,-2169.35142857,0.00028296,2]
[328860049,1717895441072,-1990.79807143,0.00028296,2]
[328860050,1717895441082,-2201.71184923,0.00028296,2]
[328860051,1717895441095,-383.33999224,0.00028296,2]
[328860052,1717895441108,-611.73238081,0.00028296,2]
[328860053,1717895441122,-4964.49417772,0.00028296,2]
[328860054,1717895441132,-1489.99346685,0.00028297,2]
[328860055,1717895441142,-2565.48812623,0.00028304,2]
[328860056,1717895441153,-160.70890894,0.00028343,2]
[328860057,1717895441163,-422.49,0.00028356,2]
[328860058,1717895441176,-526.19,0.00028356,2]
[328860059,1717895441187,-150.0,0.00028356,2]
[328860060,1717895441196,-162.19,0.00028356,2]
[328860061,1717895441207,-704.79,0.00028356,2]
[328860062,1717895441217,-150.0,0.00028356,2]
[328860063,1717895441228,-422.49,0.00028356,2]
[328860064,1717895441238,-526.19,0.00028356,2]
[328860065,1717895441248,-150.0,0.00028356,2]
[328860066,1717895441259,-150.0,0.00028356,2]
[328860067,1717895441269,-418.32,0.00028356,2]
[328860068,1717895441280,-526.19,0.00028356,2]
[328860069,1717895441290,-150.0,0.00028356,2]
[328860070,1717895441300,-150.0,0.00028356,2]
[328860071,1717895441314,-521.8,0.00028356,2]
[328860072,1717895441324,-505.74,0.00028396,15]
[328860073,1717895441334,-505.74,0.00028396,15]
[328860074,1717895441344,-505.74,0.00028396,15]
[328860076,1717895441354,-505.74,0.00028396,15]
[328860077,1717895441364,-154.37591947,0.00028428,2]
[328860078,1717895441374,-1489.99346685,0.00028498,2]
[328860079,1717895441385,-4050.1850541,0.000285,2]
[328860080,1717895441398,-2245.87006068,0.000285,2]
[328860081,1717895441410,-217.38408522,0.000285,2]
[328860082,1717895441419,-2565.48812623,0.00028503,2]
[328860083,1717895441429,-746.00551,0.0002851,2]
[328860084,1717895441439,-12673.04351573,0.0002852,2]
[328860085,1717895441449,-154.07598395,0.00028522,2]
[328860088,1717895441458,-155.27136512,0.00028551,2]
[328860091,1717895441468,-155.27136512,0.00028559,2]
[328860094,1717895441478,-2530.2291,0.000286,2]
[328860097,1717895441488,-8641.91749637,0.000286,2]
[328860102,1717895441501,-1272.39642856,0.000286,2]
[328860105,1717895441513,-1340.26476761,0.000286,2]
[328860107,1717895441525,-1258.28539142,0.000286,2]
[328860109,1717895441537,-683.175201,0.000286,2]
[328860116,1717895441569,-792.76814614,0.000286,2]
[328860260,1717895442638,-24475.3541,0.00028196,2]
[328860262,1717895442650,-15652.7713689,0.000286,2]
[328860264,1717895442660,-332.45760115,0.000286,2]
[328860266,1717895442670,-728.70285388,0.000286,2]
[328860268,1717895442680,-167.0,0.0002861,2]
[328860270,1717895442691,-154.07598395,0.0002862,2]
[328860272,1717895442700,-505.74,0.00028669,15]
[328860274,1717895442711,-505.74,0.00028669,15]
[328860276,1717895442720,-156.84065045,0.00028688,2]
[328860278,1717895442730,-155.55650691,0.00028688,2]
[328860280,1717895442740,-158.01,0.0002869,2]
[328860282,1717895442750,-262.51828012,0.0002869,2]
[328860284,1717895442759,-1489.99346685,0.00028698,2]
[328860286,1717895442769,-825.753,0.000287,2]
[328860288,1717895442778,-18026.4836,0.000287,2]
[328860290,1717895442788,-500.0,0.000287,2]
[328860292,1717895442798,-19700.729651,0.000287,2]
[328860294,1717895442807,-55084.26381252,0.000287,2]
[328860296,1717895442819,-79994.58248991,0.000287,2]
[328860299,1717895442830,-2177.01821,0.000287,2]
[328860301,1717895442842,-337.3518643,0.000287,2]
[328860326,1717895443862,-789.36605993,0.00028195,2]
[328860327,1717895443873,-487.13345027,0.000287,2]
[328860328,1717895443916,-0.5058767,0.000287,2]
[328860329,1717895444287,-7695.28913595,0.000287,2]
[328860330,1717895444300,-1458.78306831,0.000287,2]
[328860331,1717895444313,-3454.38078348,0.000287,2]
[328860332,1717895444390,-1230.16509316,0.000287,2]
[328860333,1717895444403,-975.50000002,0.000287,2]
[328860339,1717895446502,-155.0,0.00028699,2]
[328860340,1717895446513,-187.029345,0.00028699,2]
[328860341,1717895446525,-1504.61649182,0.00028699,2]
[328860345,1717895447154,-525.24750184,0.00028698,2]
[328860346,1717895447164,-1335.67397641,0.00028699,2]
[328860347,1717895447174,-2587.69172314,0.00028699,2]
[328860348,1717895447184,-1000.0,0.00028699,2]
[328860349,1717895447195,-155.0,0.00028699,2]
[328860350,1717895447205,-5042.30940419,0.00028699,2]
[328860351,1717895447215,-42911.09381538,0.000287,2]
[328860352,1717895447225,-33188.4792,0.000287,2]
[328860353,1717895447235,-100000.0,0.000287,2]
[328860354,1717895447245,-1000.0,0.000287,2]
[328860355,1717895447256,-215.0,0.000287,2]
[328860356,1717895447266,-186.6744388,0.000287,2]
[328860357,1717895447276,-7500.0,0.000287,2]
[328860358,1717895447286,-358.32103266,0.000287,2]
[328860359,1717895447296,-151.0,0.000287,7]
[328860360,1717895447310,-2565.48812623,0.00028703,2]
[328860361,1717895447321,-1183.37776132,0.00028705,2]
[328860362,1717895447331,-155.18568225,0.00028743,2]
[328860363,1717895447341,-161.57289889,0.00028751,2]
[328860364,1717895447353,-1000.0,0.00028782,2]
[328860365,1717895447363,-728.70285381,0.00028786,2]
[328860366,1717895447373,-151.91,0.0002879,2]
[328860367,1717895447385,-358.32103265,0.00028791,2]
[328860368,1717895447396,-233408.62841695,0.000288,2]
[328860369,1717895447406,-1581.87079265,0.000288,2]
[328860370,1717895447416,-1500.0,0.000288,2]
[328860371,1717895447427,-150.0,0.00028839,2]
[328860372,1717895447437,-332.4576011,0.0002886,2]
[328860373,1717895447447,-154.5961993,0.00028865,2]
[328860374,1717895447457,-175.65,0.00028875,2]
[328860375,1717895447467,-4065.41681359,0.0002888,2]
[328860376,1717895447478,-165.56280736,0.0002888,2]
[328860377,1717895447487,-161.57878949,0.00028881,2]
[328860378,1717895447497,-358.32103265,0.00028881,2]
[328860379,1717895447507,-1623.20659206,0.00028881,2]
[328860380,1717895447519,-1950.78157755,0.00028881,2]
[328860381,1717895447529,-175.65,0.00028882,2]
[328860382,1717895447539,-175.65,0.0002889,2]
[328860383,1717895447549,-152.86879678,0.00028893,2]
[328860384,1717895447559,-167.0,0.00028894,2]
[328860385,1717895447571,-400.0,0.00028897,2]
[328860386,1717895447580,-175.65,0.00028897,2]
[328860387,1717895447591,-1489.99346685,0.00028898,2]
[328860388,1717895447601,-2565.48812623,0.00028902,2]
[328860389,1717895447611,-175.65,0.00028905,2]
[328860390,1717895447622,-175.65,0.00028913,2]
[328860391,1717895447632,-175.65,0.0002892,2]
[328860392,1717895447642,-152.86879678,0.00028925,2]
[328860393,1717895447652,-175.65,0.00028928,2]
[328860394,1717895447663,-175.65,0.00028935,2]
[328860395,1717895447673,-1440.27,0.00028939,2]
[328860396,1717895447683,-505.74,0.00028942,15]
[328860397,1717895447694,-505.74,0.00028942,15]
[328860398,1717895447704,-175.65,0.00028943,2]
[328860399,1717895447715,-175.65,0.0002895,2]
[328860400,1717895447725,-175.65,0.00028958,2]
[328860401,1717895447735,-154.5961993,0.00028963,2]
[328860402,1717895447745,-175.65,0.00028966,2]
[328860403,1717895447755,-158.01,0.0002897,2]
[328860404,1717895447765,-158.01,0.0002897,2]
[328860405,1717895447775,-262.51828012,0.0002897,2]
[328860406,1717895447786,-262.51828012,0.0002897,2]
[328860407,1717895447796,-151.91,0.0002897,2]
[328860408,1717895447807,-151.91,0.0002897,2]
[328860409,1717895447817,-151.91,0.0002897,2]
[328860410,1717895447828,-728.70285381,0.00028971,2]
[328860411,1717895447838,-4065.4168135,0.00028973,2]
[328860412,1717895447849,-175.65,0.00028973,2]
[328860413,1717895447860,-154.5961993,0.00028977,2]
[328860414,1717895447871,-497.71766581,0.00028978,10]
[328860415,1717895447882,-164.74503866,0.00028978,2]
[328860416,1717895447893,-481.53748878,0.00028978,2]
[328860417,1717895447904,-155.0,0.00028978,2]
[328860418,1717895447914,-156.34146276,0.00028978,2]
[328860419,1717895447927,-155.0,0.00028978,2]
[328860420,1717895447939,-620.48288013,0.00028978,2]
[328860421,1717895447949,-155.96188869,0.00028978,2]
[328860422,1717895447960,-155.0,0.00028978,2]
[328860423,1717895447969,-636.99387588,0.00028978,2]
[328860424,1717895447979,-155.0,0.00028978,2]
[328860425,1717895447989,-195.42376414,0.00028978,2]
[328860426,1717895447999,-150.0,0.00028979,2]
[328860427,1717895448010,-315619.55850261,0.0002898,13]
[328860428,1717895448020,-173417.38970878,0.0002898,2]
[328860429,1717895476581,988.7544882,0.0001125,2]
[328860430,1717895518876,1042.16808619,0.00014,2]
[328860431,1717895524547,34966.97943608,0.00015,2]
[328860434,1717895840135,164.56,0.00025702,120]
[328860437,1717896304954,-525.24750184,0.00016205,2]
[328860438,1717896304977,-474.74423716,0.00016206,2]
[328860439,1717896434174,-545.65347238,0.00016102,2]
[328860440,1717896434198,-1000.0,0.00016103,2]
[328860441,1717896434223,-1469.32147917,0.00016104,2]
[328860442,1717896434246,-78.51337902,0.00016125,2]
[328860454,1717896633375,-327.93122394,0.00016124,2]
[328860455,1717896633387,-122.02685737,0.00016125,2]
[328860456,1717896633399,-0.07899169,0.00016125,2]
[328860457,1717896633412,-1250.19082842,0.00016125,2]
[328860458,1717896633424,-272.65381137,0.00016622,2]
[328860459,1717896633825,-27.34618863,0.00016622,2]
[328860460,1717896633836,-150.99,0.00017808,2]
[328860461,1717896633846,-411.70823499,0.00019,2]
[328860462,1717896633855,-150.0,0.00019451,2]
[328860463,1717896633865,-499.99,0.00019588,2]
[328860464,1717896633875,-353.3974269,0.0002,2]
[328860465,1717896633886,-1011.26866877,0.0002,2]
[328860466,1717896633896,-155.0,0.0002,2]
[328860467,1717896633906,-187.50211411,0.0002,2]
[328860468,1717896633916,-525.30794012,0.00021395,2]
[328860469,1717896633927,-182.0,0.00021396,2]
[328860470,1717896633937,-1000.0,0.00021415,2]
[328860471,1717896633947,-224.539,0.00022035,2]
[328860472,1717896633958,-617.49,0.00023873,2]
[328860473,1717896633969,-152.01,0.00024384,2]
[328860474,1717896633979,-6795.64360929,0.000249,2]
[328860475,1717896633990,-155.0,0.00025,2]
[328860476,1717896634000,-225.14837841,0.00025,2]
[328860477,1717896634010,-159.09108089,0.00025,2]
[328860478,1717896634020,-1276.95996531,0.00025,2]
[328860479,1717896634031,-840.0,0.0002535,2]
[328860480,1717896634042,-1000.0,0.00025647,2]
[328860481,1717896634052,-250.0,0.00025648,2]
[328860482,1717896634062,-166.31,0.00025703,2]
[328860483,1717896634072,-160.0,0.00025703,2]
[328860484,1717896634082,-200.0,0.00025703,2]
[328860485,1717896634093,-269.36,0.00025775,2]
[328860486,1717896634103,-250.0,0.00025827,2]
[328860487,1717896634113,-250.0,0.00025916,2]
[328860488,1717896634124,-617.49,0.00026137,2]
[328860489,1717896634134,-158.57985053,0.00026148,2]
[328860490,1717896634144,-157.25912092,0.00026195,2]
[328860491,1717896634154,-152.83430004,0.00026406,2]
[328860492,1717896634164,-155.11765417,0.00026407,2]
[328860493,1717896634174,-154.09332415,0.00026456,2]
[328860494,1717896634185,-175.67787658,0.00026497,2]
[328860495,1717896634195,-158.57985053,0.00026517,2]
[328860496,1717896634205,-155.11765417,0.00026518,2]
[328860497,1717896634216,-2056.17262383,0.000266,2]
[328860498,1717896634226,-154.31359694,0.00026632,2]
[328860499,1717896634236,-155.11765417,0.00026633,2]
[328860500,1717896634246,-175.67787658,0.00026644,2]
[328860501,1717896634256,-155.11765417,0.00026664,2]
[328860502,1717896634267,-158.57985053,0.00026683,2]
[328860503,1717896634277,-166.66666667,0.00026689,2]
[328860507,1717896634289,-155.11765417,0.00026707,2]
[328860509,1717896634299,-158.57985053,0.00026719,2]
[328860511,1717896634310,-175.67787658,0.00026733,2]
[328860513,1717896634320,-175.67787658,0.00026745,2]
[328860515,1717896634330,-165.87406651,0.00026774,2]
[328860517,1717896634340,-151.97136847,0.00026779,2]
[328860519,1717896634350,-155.11765417,0.00026883,2]
[328860521,1717896634361,-158.57985053,0.00026898,2]
[328860523,1717896634371,-154.56992215,0.00026901,2]
[328860525,1717896634382,-154.09332415,0.00026957,2]
[328860527,1717896634393,-152.83430004,0.00026988,2]
[328860529,1717896634403,-150.0,0.00027,2]
[328860531,1717896634413,-155.11765417,0.00027033,2]
[328860533,1717896634422,-157.25912093,0.00027066,2]
[328860534,1717896634433,-152.83430004,0.00027152,2]
[328860536,1717896634443,-158.57985053,0.00027202,2]
[328860537,1717896634454,-155.11765417,0.00027304,2]
[328860538,1717896634465,-152.67893216,0.00027348,2]
[328860539,1717896634476,-175.67787658,0.00027361,2]
[328860540,1717896634485,-151.97136847,0.00027365,2]
[328860541,1717896634496,-794.03447589,0.0002739,2]
[328860542,1717896634507,-150.0,0.00027397,2]
[328860543,1717896634517,-177.15,0.00027397,2]
[328860544,1717896634527,-155.17449372,0.00027412,2]
[328860545,1717896634538,-152.83430004,0.00027415,2]
[328860546,1717896634548,-155.11765417,0.00027426,2]
[328860547,1717896634558,-154.31359694,0.00027534,2]
[328860548,1717896634568,-175.67787658,0.00027538,2]
[328860549,1717896634579,-175.67787658,0.00027606,2]
[328860550,1717896634589,-158.57985053,0.00027608,2]
[328860551,1717896634600,-154.54095257,0.00027669,2]
[328860552,1717896634610,-175.67787658,0.0002779,2]
[328860553,1717896634620,-154.31359694,0.00027842,2]
[328860554,1717896634630,-158.57985053,0.00027874,2]
[328860555,1717896634640,-155.11765417,0.00027966,2]
[328860556,1717896634650,-158.57985053,0.00027974,2]
[328860557,1717896634660,-158.57985053,0.00027986,2]
[328860558,1717896634670,-175.67787658,0.00027988,2]
[328860559,1717896634679,-303.41388,0.00028,2]
[328860560,1717896634689,-468.83260483,0.00028,2]
[328860561,1717896634699,-368.66818693,0.00028,7]
[328860562,1717896634712,-155.62457787,0.00028007,2]
[328860563,1717896634722,-175.67787658,0.00028041,2]
[328860564,1717896634732,-8883.56158561,0.00028043,2]
[328860565,1717896634743,-155.11765417,0.00028049,2]
[328860566,1717896634756,-155.62457787,0.00028094,2]
[328860567,1717896634766,-155.62457787,0.00028106,2]
[328860568,1717896634776,-150.0,0.00028118,2]
[328860569,1717896634790,-151.97136847,0.00028125,2]
[328860570,1717896634801,-1000.0,0.00028145,2]
[328860571,1717896634811,-6762.22769151,0.00028146,2]
[328860572,1717896634821,-905.52184861,0.00028155,2]
[328860573,1717896634831,-38381.5075,0.00028156,2]
[328860574,1717896634841,-155.17449372,0.00028172,2]
[328860575,1717896634851,-40824.6257,0.00028196,2]
[328860576,1717896634862,-180.0,0.00028199,2]
[328860577,1717896634872,-175.67787658,0.00028201,2]
[328860578,1717896634881,-170.58240983,0.00028269,2]
[328860579,1717896634892,-158.57985053,0.00028285,2]
[328860580,1717896634902,-155.11765417,0.00028304,2]
[328860581,1717896634913,-215.13326472,0.00028398,2]
[328860582,1717896634923,-926.51445225,0.00028398,2]
[328860583,1717896634934,-617.49,0.00028401,2]
[328860584,1717896634944,-158.57985053,0.00028401,2]
[328860585,1717896634954,-175.67787658,0.00028407,2]
[328860586,1717896634964,-151.97136847,0.00028437,2]
[328860587,1717896634975,-15653.8386,0.00028499,2]
[328860588,1717896634985,-2522.5754,0.00028499,2]
[328860589,1717896634996,-744.99673347,0.00028499,2]
[328860590,1717896635006,-1000.0,0.000285,2]
[328860591,1717896635016,-175.67787658,0.00028509,2]
[328860592,1717896635026,-840.0,0.00028519,2]
[328860593,1717896635037,-455.43928364,0.00028522,2]
[328860594,1717896635047,-334.221296,0.00028522,2]
[328860595,1717896635057,-175.67787658,0.00028574,2]
[328860596,1717896635068,-155.08597431,0.00028592,2]
[328860597,1717896635078,-243.49222414,0.00028598,14]
[328860598,1717896635089,-500.0,0.00028599,2]
[328860599,1717896635099,-391.06069415,0.00028599,2]
[328860600,1717896635110,-203.58218417,0.00028599,2]
[328860601,1717896635120,-500.0,0.00028599,2]
[328860602,1717896635130,-500.0,0.00028599,2]
[328860603,1717896635139,-500.0,0.00028599,2]
[328860604,1717896635149,-500.0,0.00028599,2]
[328860605,1717896635159,-500.0,0.00028599,2]
[328860606,1717896635168,-500.0,0.00028599,2]
[328860607,1717896635178,-500.0,0.00028599,2]
[328860608,1717896635187,-500.0,0.00028599,2]
[328860609,1717896635198,-500.0,0.00028599,2]
[328860610,1717896635207,-500.0,0.00028599,2]
[328860611,1717896635217,-500.0,0.00028599,2]
[328860612,1717896635227,-500.0,0.00028599,2]
[328860613,1717896635238,-500.0,0.00028599,2]
[328860614,1717896635248,-500.0,0.00028599,2]
[328860615,1717896635258,-500.0,0.00028599,2]
[328860616,1717896635268,-500.0,0.00028599,2]
[328860617,1717896635278,-500.0,0.00028599,2]
[328860618,1717896635290,-500.0,0.00028599,2]
[328860619,1717896635300,-500.0,0.00028599,2]
[328860620,1717896635310,-500.0,0.00028599,2]
[328860621,1717896635320,-500.0,0.00028599,2]
[328860622,1717896635330,-500.0,0.00028599,2]
[328860623,1717896635340,-500.0,0.00028599,2]
[328860624,1717896635351,-500.0,0.00028599,2]
[328860625,1717896635361,-500.0,0.00028599,2]
[328860626,1717896635371,-500.0,0.00028599,2]
[328860627,1717896635381,-453.6781385,0.00028599,2]
[328860628,1717896635391,-500.0,0.00028599,2]
[328860629,1717896635401,-500.0,0.00028599,2]
[328860630,1717896635411,-500.0,0.00028599,2]
[328860631,1717896635421,-500.0,0.00028599,2]
[328860632,1717896635431,-500.0,0.00028599,2]
[328860633,1717896635441,-500.0,0.00028599,2]
[328860634,1717896635450,-500.0,0.00028599,2]
[328860635,1717896635460,-500.0,0.00028599,2]
[328860636,1717896635471,-500.0,0.00028599,2]
[328860637,1717896635481,-500.0,0.00028599,2]
[328860638,1717896635491,-500.0,0.00028599,2]
[328860639,1717896635500,-500.0,0.00028599,2]
[328860640,1717896635511,-500.0,0.00028599,2]
[328860641,1717896635520,-500.0,0.00028599,2]
[328860642,1717896635529,-500.0,0.00028599,2]
[328860643,1717896635539,-500.0,0.00028599,2]
[328860644,1717896635550,-500.0,0.00028599,2]
[328860645,1717896635559,-500.0,0.00028599,2]
[328860646,1717896635569,-500.0,0.00028599,2]
[328860647,1717896635579,-500.0,0.00028599,2]
[328860648,1717896635589,-500.0,0.00028599,2]
[328860649,1717896635599,-500.0,0.00028599,2]
[328860650,1717896635608,-500.0,0.00028599,2]
[328860651,1717896635618,-500.0,0.00028599,2]
[328860652,1717896635628,-500.0,0.00028599,2]
[328860653,1717896635639,-500.0,0.00028599,2]
[328860654,1717896635649,-650.0,0.00028599,2]
[328860655,1717896635659,-2756.2887,0.000286,2]
[328860656,1717896635670,-65564.4434,0.000286,2]
[328860657,1717896635680,-75381.56366511,0.000286,2]
[328860658,1717896635695,-967.82884568,0.000286,2]
[328860660,1717896639156,-326.00087513,0.00025349,2]
[328860662,1717896639168,-3147.69125382,0.000286,2]
[328860663,1717896639182,-448.75352163,0.000286,2]
[328860664,1717896639195,-4616.86356808,0.000286,2]
[328860665,1717896644801,-1e-06,0.00019,2]
[328860666,1717896645261,-659.7623327,0.00019,2]
[328860667,1717896645271,-2507.4361663,0.000286,2]
[328860671,1717896648110,-226.67450997,0.000201,2]
[328860672,1717896648120,-389.32549003,0.000286,2]
[328860673,1717896648132,-2835.95935006,0.000286,2]
[328860674,1717896648144,-2047.78437271,0.000286,2]
[328860675,1717896648156,-2695.74244401,0.000286,2]
[328860676,1717896648168,-1189.99134495,0.000286,2]
[328860677,1717896648180,-525.41710089,0.000286,2]
[328860678,1717896648473,-5640.52606362,0.000286,2]
[328860680,1717896648486,-8611.49386958,0.000286,2]
[328860683,1717896648498,-3337.5717888,0.000286,2]
[328860689,1717896648964,-1106.62639306,0.000286,2]
[328860695,1717896845291,3654.57160616,0.000118,2]
[328860696,1717896882706,4759.47764759,0.000118,2]
[328860697,1717896887208,4759.47764759,0.000118,2]
[328860700,1717896926354,283.31555689,0.00028,90]
[328860701,1717896927210,439.20734518,0.000118,2]
[328860748,1717897654176,-1000.0,0.00017259,2]
[328860749,1717897654199,-411.78978404,0.00019,2]
[328860750,1717897654222,-1006.36146949,0.00019583,2]
[328860751,1717897654245,-226.67450997,0.000201,2]
[328860752,1717897654267,-187.53798218,0.0002178,2]
[328860753,1717897654289,-936.39,0.00021781,2]
[328860754,1717897654311,-884.02,0.00021781,2]
[328860755,1717897654344,-499.99,0.00021781,2]
[328860756,1717897654371,-150.0,0.00021781,2]
[328860757,1717897654393,-541.02824893,0.00021798,2]
[328860758,1717897751669,9842.356,0.0001601,2]
[328860767,1717897832476,-226.67450997,0.000201,2]
[328860768,1717897832487,-458.97175107,0.00021798,2]
[328860769,1717897832498,-2335.0,0.000218,2]
[328860770,1717897832509,-222.663,0.00021895,2]
[328860771,1717897832521,-7104.03633674,0.000224,5]
[328860772,1717897832550,-4187.96366326,0.000224,5]
[328860773,1717897832561,-300.0,0.000229,2]
[328860774,1717897832571,-354.49041307,0.00023,2]
[328860775,1717897832581,-567.61,0.00023813,2]
[328860776,1717897832591,-2786.64089999,0.00024,15]
[328860777,1717897832601,-171.54,0.00024384,2]
[328860778,1717897832612,-160.43,0.00024384,2]
[328860779,1717897832623,-1000.0,0.0002455,2]
[328860780,1717897832634,-1250.0,0.00025,2]
[328860781,1717897832644,-326.00087513,0.00025,2]
[328860782,1717897832655,-159.09108089,0.00025,2]
[328860783,1717897832667,-200.0,0.00025354,2]
[328860784,1717897832678,-250.0,0.0002538,2]
[328860785,1717897832688,-1004.60508806,0.00025539,2]
[328860786,1717897832698,-23900.0,0.0002554,2]
[328860787,1717897832708,-250.0,0.00025662,2]
[328860788,1717897832718,-1000.0,0.00025674,2]
[328860789,1717897832728,-200.0,0.00025683,2]
[328860790,1717897832738,-150.0,0.00025688,2]
[328860791,1717897832749,-250.0,0.00025691,2]
[328860792,1717897832759,-500.0,0.00025823,2]
[328860793,1717897832771,-301.26,0.00025919,2]
[328860794,1717897832781,-1580.75,0.00026069,2]
[328860795,1717897832791,-567.61,0.00026077,2]
[328860796,1717897832801,-165.47566353,0.00026146,2]
[328860797,1717897832811,-159.66485689,0.00026159,2]
[328860798,1717897832821,-154.24757255,0.00026219,2]
[328860799,1717897832832,-156.14244047,0.00026404,2]
[328860800,1717897832843,-158.74582489,0.00026514,2]
[328860801,1717897832854,-1000.0,0.00026663,2]
[328860802,1717897832865,-173.09676215,0.00026664,2]
[328860803,1717897832876,-159.66485689,0.00026677,2]
[328860804,1717897832886,-167.0,0.00026697,2]
[328860805,1717897832896,-152.72272885,0.00026813,2]
[328860806,1717897832905,-152.72272885,0.00026933,2]
[328860807,1717897832915,-159.66485689,0.00026978,2]
[328860808,1717897832925,-152.72272885,0.00026997,2]
[328860809,1717897832937,-1300.0,0.00027,2]
[328860810,1717897832948,-150.0,0.00027,2]
[328860811,1717897832959,-159.66485689,0.00027027,2]
[328860812,1717897832970,-158.69820798,0.00027046,2]
[328860813,1717897832981,-206.43652591,0.00027082,2]
[328860814,1717897832992,-155.43993928,0.00027178,2]
[328860815,1717897833003,-166.66666666,0.00027226,2]
[328860816,1717897833013,-277.4852,0.00027304,2]
[328860817,1717897833023,-152.72272885,0.00027321,2]
[328860818,1717897833033,-159.66485689,0.00027338,2]
[328860819,1717897833043,-152.72272885,0.00027356,2]
[328860820,1717897833053,-150.55,0.00027359,2]
[328860821,1717897833063,-165.47566353,0.00027378,2]
[328860822,1717897833074,-150.55,0.00027381,2]
[328860823,1717897833085,-152.72272885,0.00027394,2]
[328860824,1717897833097,-177.9,0.00027397,2]
[328860825,1717897833108,-150.0,0.00027397,2]
[328860826,1717897833119,-1521.30188296,0.000274,2]
[328860827,1717897833131,-150.55,0.00027404,2]
[328860828,1717897833141,-155.63277684,0.00027422,2]
[328860829,1717897833152,-150.55,0.00027427,2]
[328860830,1717897833162,-5008.08709582,0.00027445,2]
[328860831,1717897833173,-150.55,0.0002745,2]
[328860832,1717897833183,-150.55,0.00027473,2]
[328860833,1717897833193,-152.72272885,0.00027474,2]
[328860834,1717897833214,-150.55,0.00027495,2]
[328860835,1717897833225,-166.66666666,0.00027497,2]
[328860836,1717897833235,-154.24757255,0.00027527,2]
[328860837,1717897833245,-165.47566353,0.00027625,2]
[328860838,1717897833255,-155.67342785,0.00027663,2]
[328860839,1717897833267,-152.72272885,0.00027753,2]
[328860840,1717897833277,-159.66485689,0.00027797,2]
[328860841,1717897833288,-662.5003,0.000278,2]
[328860842,1717897833299,-152.72272885,0.00027841,2]
[328860843,1717897833309,-88847.6388555,0.000279,10]
[328860844,1717897833319,-742.40663345,0.000279,2]
[328860845,1717897833329,-403.70085612,0.000279,2]
[328860846,1717897833340,-164.92612295,0.00027925,2]
[328860847,1717897833350,-165.47566353,0.00027984,2]
[328860848,1717897833362,-1423.32,0.0002799,2]
[328860849,1717897833372,-1423.32,0.0002799,2]
[328860850,1717897833384,-1423.32,0.0002799,2]
[328860851,1717897833395,-500.0,0.00027999,2]
[328860852,1717897833406,-500.0,0.00027999,2]
[328860853,1717897833417,-500.0,0.00027999,2]
[328860854,1717897833427,-153.72416273,0.00027999,2]
[328860855,1717897833437,-500.0,0.00027999,2]
[328860856,1717897833447,-500.0,0.00027999,2]
[328860857,1717897833457,-500.0,0.00027999,2]
[328860858,1717897833468,-500.0,0.00027999,2]
[328860859,1717897833478,-139197.10352592,0.00028,2]
[328860860,1717897833494,-889.15149544,0.00028,2]
[328860861,1717897833515,-2942.69004989,0.00028,2]
[328860865,1717897838405,-154.458,0.00021895,2]